fUSD/lending_fUSD_20250923
["ID","MTS","AMOUNT","RATE_DAILY","PERIOD"]
[387242209,1758664331060,-1462.57,0.00026027,3]
[387242210,1758664331069,-400.0,0.00026027,3]
[387242211,1758664331079,-400.0,0.00026027,3]
[387242212,1758664331088,-7446.15,0.00026027,3]
[387242213,1758664331098,-621.18,0.00026027,3]
[387242214,1758664331107,-1544.2,0.00026027,3]
[387242215,1758664331117,-644.91,0.00026027,3]
[387242216,1758664331127,-613.5,0.00026027,3]
[387242217,1758664331136,-644.94,0.00026027,3]
[387242218,1758664331146,-400.0,0.00026027,3]
[387242219,1758664331156,-964.09,0.00026027,3]
[387242220,1758664331166,-924.07,0.00026027,3]
[387242221,1758664331176,-413.72,0.00026027,3]
[387242222,1758664331186,-300.0,0.00026027,3]
[387242223,1758664331196,-1218.93,0.00026027,3]
[387242224,1758664331206,-472.05,0.00026027,3]
[387242225,1758664331216,-525.7,0.00026027,3]
[387242226,1758664331226,-400.0,0.00026027,3]
[387242227,1758664331236,-431.76,0.00026027,3]
[387242228,1758664331246,-1583.89,0.00026027,3]
[387242229,1758664331266,-501.11,0.00026027,3]
[387242230,1758664331280,-523.06,0.00026027,3]
[387242231,1758664331289,-2926.65,0.00026027,3]
[387242232,1758664331299,-400.0,0.00026027,3]
[387242233,1758664331309,-684.39,0.00026027,3]
[387242234,1758664331319,-400.0,0.00026027,3]
[387242235,1758664331329,-490.24,0.00026027,3]
[387242236,1758664331339,-1089.09,0.00026027,3]
[387242237,1758664331349,-400.0,0.00026027,3]
[387242238,1758664331359,-10315.68,0.00026027,3]
[387242239,1758664331369,-453.77,0.00026027,3]
[387242240,1758664331379,-564.83,0.00026027,3]
[387242241,1758664331392,-814.85,0.00026027,3]
[387242242,1758664331402,-873.79,0.00026027,3]
[387242243,1758664331412,-400.0,0.00026027,3]
[387242244,1758664331421,-548.44,0.00026027,3]
[387242245,1758664331432,-200.99252845,0.00026027,3]
[387242246,1758664331442,-1681.09,0.00026027,3]
[387242247,1758664331452,-478.24,0.00026027,3]
[387242248,1758664331463,-1874.55,0.00026027,3]
[387242249,1758664331473,-1081.32,0.00026027,3]
[387242250,1758664331483,-400.0,0.00026027,3]
[387242251,1758664331493,-400.0,0.00026027,3]
[387242252,1758664331503,-710.95,0.00026027,3]
[387242253,1758664331513,-852.97,0.00026027,3]
[387242254,1758664331524,-400.0,0.00026027,3]
[387242255,1758664331534,-400.0,0.00026027,3]
[387242256,1758664331544,-895.27,0.00026027,3]
[387242257,1758664331554,-532.39,0.00026027,3]
[387242258,1758664331564,-400.0,0.00026027,3]
[387242259,1758664331573,-1448.24,0.00026027,3]
[387242260,1758664331583,-1804.22,0.00026027,3]
[387242261,1758664331594,-400.0,0.00026027,3]
[387242262,1758664331604,-400.0,0.00026027,3]
[387242263,1758664331614,-677.14,0.00026027,3]
[387242264,1758664331624,-2056.2,0.00026027,3]
[387242265,1758664331634,-400.0,0.00026027,3]
[387242266,1758664331643,-1527.7,0.00026027,3]
[387242267,1758664331654,-443.95,0.00026027,3]
[387242268,1758664331663,-1886.51,0.00026027,3]
[387242269,1758664331673,-1803.32,0.00026027,3]
[387242270,1758664331683,-1120.28,0.00026027,3]
[387242271,1758664331693,-400.0,0.00026027,3]
[387242272,1758664331703,-1036.13,0.00026027,3]
[387242273,1758664331713,-400.0,0.00026027,3]
[387242274,1758664331723,-517.83,0.00026027,3]
[387242275,1758664331733,-482.02,0.00026027,3]
[387242276,1758664331743,-2362.16,0.00026027,3]
[387242277,1758664331753,-400.0,0.00026027,3]
[387242278,1758664331763,-400.0,0.00026027,3]
[387242279,1758664331773,-524.16,0.00026027,3]
[387242280,1758664331783,-3343.32,0.00026027,3]
[387242281,1758664331792,-1564.43,0.00026027,3]
[387242282,1758664331802,-400.0,0.00026027,3]
[387242283,1758664331813,-2055.82,0.00026027,3]
[387242284,1758664331823,-400.0,0.00026027,3]
[387242285,1758664331833,-485.4,0.00026027,3]
[387242286,1758664331843,-2920.55,0.00026027,3]
[387242287,1758664331853,-542.94,0.00026027,3]
[387242288,1758664331863,-1774.73,0.00026027,3]
[387242289,1758664331873,-2377.65,0.00026027,3]
[387242290,1758664331883,-400.0,0.00026027,3]
[387242291,1758664331892,-400.0,0.00026027,3]
[387242292,1758664331902,-400.0,0.00026027,3]
[387242293,1758664331912,-400.0,0.00026027,3]
[387242294,1758664331922,-4398.6,0.00026027,3]
[387242295,1758664331932,-2733.93,0.00026027,3]
[387242296,1758664331942,-1866.28,0.00026027,3]
[387242297,1758664331952,-2206.4,0.00026027,3]
[387242298,1758664331961,-400.0,0.00026027,3]
[387242299,1758664331971,-491.17,0.00026027,3]
[387242300,1758664331981,-1493.5,0.00026027,3]
[387242301,1758664331991,-441.23,0.00026027,3]
[387242302,1758664332000,-400.0,0.00026027,3]
[387242303,1758664332010,-872.02,0.00026027,3]
[387242304,1758664332020,-566.5,0.00026027,3]
[387242305,1758664332030,-328.96,0.00026027,3]
[387242306,1758664332040,-841.18,0.00026027,3]
[387242307,1758664332050,-1970.71,0.00026027,3]
[387242308,1758664332060,-400.0,0.00026027,3]
[387242309,1758664332070,-1182.93,0.00026027,3]
[387242310,1758664332080,-3675.81,0.00026027,3]
[387242311,1758664332090,-400.0,0.00026027,3]
[387242312,1758664332101,-469.2,0.00026027,3]
[387242313,1758664332111,-660.51,0.00026027,3]
[387242314,1758664332120,-473.75333765,0.00026027,3]
[387242315,1758664332130,-1466.11,0.00026027,3]
[387242316,1758664332140,-1923.86,0.00026027,3]
[387242317,1758664332150,-535.19,0.00026027,3]
[387242318,1758664332160,-515.64,0.00026027,3]
[387242319,1758664332170,-788.86,0.00026027,3]
[387242320,1758664332180,-770.57,0.00026027,3]
[387242321,1758664332190,-400.0,0.00026027,3]
[387242322,1758664332200,-493.51,0.00026027,3]
[387242323,1758664332210,-12445.83,0.00026027,3]
[387242324,1758664332220,-681.58,0.00026027,3]
[387242325,1758664332230,-3103.88,0.00026027,3]
[387242326,1758664332240,-290.98935717,0.00026027,3]
[387242327,1758664332251,-400.0,0.00026027,3]
[387242328,1758664332261,-400.0,0.00026027,3]
[387242329,1758664332271,-1593.87,0.00026027,3]
[387242330,1758664332282,-2705.96,0.00026027,3]
[387242331,1758664332292,-1801.89,0.00026027,3]
[387242332,1758664332303,-1375.02,0.00026027,3]
[387242333,1758664332315,-1657.6,0.00026027,3]
[387242334,1758664332325,-4394.25,0.00026027,3]
[387242335,1758664332335,-400.0,0.00026027,3]
[387242336,1758664332345,-498.24,0.00026027,3]
[387242337,1758664332355,-1354.9,0.00026027,3]
[387242338,1758664332365,-477.48,0.00026027,3]
[387242339,1758664332374,-483.59,0.00026027,3]
[387242340,1758664332386,-400.0,0.00026027,3]
[387242341,1758664332397,-2718.14,0.00026027,3]
[387242342,1758664332407,-400.0,0.00026027,3]
[387242343,1758664332417,-1525.42,0.00026027,3]
[387242344,1758664332427,-506.66,0.00026027,3]
[387242345,1758664332437,-400.0,0.00026027,3]
[387242346,1758664332447,-277.82,0.00026027,3]
[387242347,1758664332457,-616.12,0.00026027,3]
[387242348,1758664332467,-400.0,0.00026027,3]
[387242349,1758664332477,-537.74,0.00026027,3]
[387242350,1758664332486,-8925.42,0.00026027,3]
[387242351,1758664332496,-1080.71,0.00026027,3]
[387242352,1758664332506,-1946.95,0.00026027,3]
[387242353,1758664332515,-1594.41,0.00026027,3]
[387242354,1758664332525,-693.58,0.00026027,3]
[387242355,1758664332535,-778.13,0.00026027,3]
[387242356,1758664332545,-3295.49,0.00026027,3]
[387242357,1758664332555,-1328.48,0.00026027,3]
[387242358,1758664332566,-6607.03,0.00026027,3]
[387242359,1758664332576,-400.0,0.00026027,3]
[387242360,1758664332586,-1718.13,0.00026027,3]
[387242361,1758664332596,-1594.83,0.00026027,3]
[387242362,1758664332606,-487.88,0.00026027,3]
[387242363,1758664332616,-2770.64,0.00026027,3]
[387242364,1758664332626,-720.33,0.00026027,3]
[387242365,1758664332636,-1145.93,0.00026027,3]
[387242366,1758664332646,-3077.98,0.00026027,3]
[387242367,1758664332657,-1583.84,0.00026027,3]
[387242368,1758664332667,-560.56,0.00026027,3]
[387242369,1758664332676,-2609.15,0.00026027,3]
[387242370,1758664332687,-400.0,0.00026027,3]
[387242371,1758664332697,-1532.57,0.00026027,3]
[387242372,1758664332707,-1601.89,0.00026027,3]
[387242373,1758664332718,-470.81,0.00026027,3]
[387242374,1758664332728,-736.9,0.00026027,3]
[387242375,1758664332738,-682.28,0.00026027,3]
[387242376,1758664332747,-473.85,0.00026027,3]
[387242377,1758664332757,-400.0,0.00026027,3]
[387242378,1758664332767,-444.2,0.00026027,3]
[387242379,1758664332777,-2011.79,0.00026027,3]
[387242380,1758664332787,-1854.54,0.00026027,3]
[387242381,1758664332796,-1424.75,0.00026027,3]
[387242382,1758664332806,-400.0,0.00026027,3]
[387242383,1758664332816,-667.22,0.00026027,3]
[387242384,1758664332826,-414.20109813,0.00026027,3]
[387242385,1758664332836,-7260.11,0.00026027,3]
[387242386,1758664332846,-340.09772635,0.00026027,3]
[387242387,1758664332856,-814.88,0.00026027,3]
[387242388,1758664332866,-1011.39,0.00026027,3]
[387242389,1758664332876,-746.48,0.00026027,3]
[387242390,1758664332886,-2063.59,0.00026027,3]
[387242391,1758664332895,-1086.66,0.00026027,3]
[387242392,1758664332905,-821.38,0.00026027,3]
[387242393,1758664332914,-1885.78,0.00026027,3]
[387242394,1758664332925,-1320.39,0.00026027,3]
[387242395,1758664332935,-400.0,0.00026027,3]
[387242396,1758664332945,-1989.15,0.00026027,3]
[387242397,1758664332955,-400.0,0.00026027,3]
[387242398,1758664332965,-400.0,0.00026027,3]
[387242399,1758664332975,-403.83,0.00026027,3]
[387242400,1758664332985,-400.0,0.00026027,3]
[387242401,1758664332995,-400.0,0.00026027,3]
[387242402,1758664333005,-400.0,0.00026027,3]
[387242403,1758664333016,-723.28,0.00026027,3]
[387242404,1758664333025,-561.18,0.00026027,3]
[387242405,1758664333036,-2702.29,0.00026027,3]
[387242406,1758664333046,-1721.72,0.00026027,3]
[387242407,1758664333056,-1260.0,0.00026027,3]
[387242408,1758664333066,-400.0,0.00026027,3]
[387242409,1758664333076,-3598.37,0.00026027,3]
[387242410,1758664333086,-400.0,0.00026027,3]
[387242411,1758664333096,-502.26,0.00026027,3]
[387242412,1758664333108,-1474.59,0.00026027,3]
[387242413,1758664333421,-1620.58,0.00026027,3]
[387242414,1758664333433,-506.33,0.00026027,3]
[387242415,1758664333442,-400.0,0.00026027,3]
[387242416,1758664333452,-1424.01,0.00026027,3]
[387242417,1758664333461,-1420.11,0.00026027,3]
[387242418,1758664333471,-670.32,0.00026027,3]
[387242419,1758664333481,-1056.56,0.00026027,3]
[387242420,1758664333491,-400.0,0.00026027,3]
[387242421,1758664333500,-1331.6,0.00026027,3]
[387242422,1758664333509,-1563.82,0.00026027,3]
[387242423,1758664333518,-2954.78,0.00026027,3]
[387242424,1758664333528,-1966.97,0.00026027,3]
[387242425,1758664333537,-749.44,0.00026027,3]
[387242426,1758664333547,-400.0,0.00026027,3]
[387242427,1758664333557,-1062.51,0.00026027,3]
[387242428,1758664333566,-4579.98,0.00026027,3]
[387242429,1758664333576,-760.02,0.00026027,3]
[387242430,1758664333585,-400.0,0.00026027,3]
[387242431,1758664333594,-1527.26,0.00026027,3]
[387242432,1758664333605,-400.0,0.00026027,3]
[387242433,1758664333614,-655.81,0.00026027,3]
[387242434,1758664333624,-3361.37,0.00026027,3]
[387242435,1758664333633,-691.42,0.00026027,3]
[387242436,1758664333643,-1798.01,0.00026027,3]
[387242437,1758664333653,-400.0,0.00026027,3]
[387242438,1758664333662,-1342.02,0.00026027,3]
[387242439,1758664333672,-588.0,0.00026027,3]
[387242440,1758664333681,-2353.38,0.00026027,3]
[387242441,1758664333691,-11455.47,0.00026027,3]
[387242442,1758664333700,-426.64,0.00026027,3]
[387242443,1758664333710,-2944.68,0.00026027,3]
[387242444,1758664333719,-891.93,0.00026027,3]
[387242445,1758664333729,-836.0,0.00026027,3]
[387242446,1758664333738,-400.0,0.00026027,3]
[387242447,1758664333747,-2297.98,0.00026027,3]
[387242448,1758664333756,-430.82,0.00026027,3]
[387242449,1758664333766,-557.1,0.00026027,3]
[387242450,1758664333775,-8056.28,0.00026027,3]
[387242451,1758664333785,-2148.78,0.00026027,3]
[387242452,1758664333794,-984.5,0.00026027,3]
[387242453,1758664333804,-400.0,0.00026027,3]
[387242454,1758664333813,-400.0,0.00026027,3]
[387242455,1758664333822,-1898.09,0.00026027,3]
[387242456,1758664333831,-400.0,0.00026027,3]
[387242457,1758664333840,-400.0,0.00026027,3]
[387242458,1758664333849,-1120.22,0.00026027,3]
[387242459,1758664333858,-1488.78,0.00026027,3]
[387242460,1758664333867,-2196.12,0.00026027,3]
[387242461,1758664333878,-2673.31,0.00026027,3]
[387242462,1758664333887,-400.0,0.00026027,3]
[387242463,1758664333897,-1974.89,0.00026027,3]
[387242464,1758664333907,-403.19,0.00026027,3]
[387242465,1758664333916,-1160.52,0.00026027,3]
[387242466,1758664333926,-400.0,0.00026027,3]
[387242467,1758664333935,-216.71346629,0.00026027,3]
[387242468,1758664333945,-400.0,0.00026027,3]
[387242469,1758664333954,-4427.59,0.00026027,3]
[387242470,1758664333964,-543.91,0.00026027,3]
[387242471,1758664333973,-736.09,0.00026027,3]
[387242472,1758664333983,-570.83,0.00026027,3]
[387242473,1758664333992,-1729.78,0.00026027,3]
[387242474,1758664334002,-509.42,0.00026027,3]
[387242475,1758664334011,-858.26,0.00026027,3]
[387242476,1758664334021,-2115.52,0.00026027,3]
[387242477,1758664334031,-400.0,0.00026027,3]
[387242478,1758664334041,-1946.73,0.00026027,3]
[387242479,1758664334051,-320.59377444,0.00026027,3]
[387242480,1758664334061,-523.04,0.00026027,3]
[387242481,1758664334070,-1720.08,0.00026027,3]
[387242482,1758664334080,-590.58,0.00026027,3]
[387242483,1758664334089,-2168.16,0.00026027,3]
[387242484,1758664334099,-1479.38,0.00026027,3]
[387242485,1758664334108,-3204.79,0.00026027,3]
[387242486,1758664334118,-1290.76,0.00026027,3]
[387242487,1758664334128,-400.0,0.00026027,3]
[387242488,1758664334138,-466.33,0.00026027,3]
[387242489,1758664334147,-1323.54,0.00026027,3]
[387242490,1758664334157,-400.0,0.00026027,3]
[387242491,1758664334167,-727.07,0.00026027,3]
[387242492,1758664334177,-633.05,0.00026027,3]
[387242493,1758664334187,-413.88,0.00026027,3]
[387242494,1758664334196,-400.0,0.00026027,3]
[387242495,1758664334206,-505.54,0.00026027,3]
[387242496,1758664334215,-1000.0,0.00026027,3]
[387242497,1758664334225,-403.44588992,0.00026027,3]
[387242498,1758664334234,-654.93,0.00026027,3]
[387242499,1758664334244,-760.67,0.00026027,3]
[387242500,1758664334254,-562.75,0.00026027,3]
[387242501,1758664334263,-2523.28,0.00026027,3]
[387242502,1758664334273,-1733.39,0.00026027,3]
[387242503,1758664334283,-2310.41,0.00026027,3]
[387242504,1758664334292,-449.90637064,0.00026027,3]
[387242505,1758664334302,-241.50814222,0.00026027,3]
[387242506,1758664334312,-400.0,0.00026027,3]
[387242507,1758664334321,-2604.18,0.00026027,3]
[387242508,1758664334331,-551.29,0.00026027,3]
[387242509,1758664334340,-1966.27,0.00026027,3]
[387242510,1758664334349,-1174.67,0.00026027,3]
[387242511,1758664334358,-400.0,0.00026027,3]
[387242512,1758664334367,-2276.88,0.00026027,3]
[387242513,1758664334377,-421.49,0.00026027,3]
[387242514,1758664334389,-400.0,0.00026027,3]
[387242515,1758664334398,-706.26,0.00026027,3]
[387242516,1758664334408,-3628.11,0.00026027,3]
[387242517,1758664334418,-2647.87,0.00026027,3]
[387242518,1758664334427,-565.31,0.00026027,3]
[387242519,1758664334438,-1829.63,0.00026027,3]
[387242520,1758664334448,-3130.39,0.00026027,3]
[387242521,1758664334458,-2516.63,0.00026027,3]
[387242522,1758664334469,-1595.55,0.00026027,3]
[387242523,1758664334478,-400.0,0.00026027,3]
[387242524,1758664334488,-400.0,0.00026027,3]
[387242525,1758664334497,-1399.27,0.00026027,3]
[387242526,1758664334505,-1323.37,0.00026027,3]
[387242527,1758664334515,-4362.99,0.00026027,3]
[387242528,1758664334524,-2164.69,0.00026027,3]
[387242529,1758664334533,-400.0,0.00026027,3]
[387242530,1758664334542,-410.88,0.00026027,3]
[387242531,1758664334552,-554.53,0.00026027,3]
[387242532,1758664334561,-2696.65,0.00026027,3]
[387242533,1758664334571,-2557.76,0.00026027,3]
[387242534,1758664334580,-400.0,0.00026027,3]
[387242535,1758664334589,-436.41,0.00026027,3]
[387242536,1758664334599,-2080.13,0.00026027,3]
[387242537,1758664334608,-1822.61,0.00026027,3]
[387242538,1758664334618,-7563.58,0.00026027,3]
[387242539,1758664334627,-2197.93,0.00026027,3]
[387242540,1758664334636,-400.0,0.00026027,3]
[387242541,1758664334646,-3272.4,0.00026027,3]
[387242542,1758664334656,-2668.58,0.00026027,3]
[387242543,1758664334666,-400.0,0.00026027,3]
[387242544,1758664334676,-547.88,0.00026027,3]
[387242545,1758664334686,-400.0,0.00026027,3]
[387242546,1758664334696,-2360.32,0.00026027,3]
[387242547,1758664334706,-2254.46,0.00026027,3]
[387242548,1758664334716,-1439.94,0.00026027,3]
[387242549,1758664334726,-439.37,0.00026027,3]
[387242550,1758664334736,-1694.56,0.00026027,3]
[387242551,1758664334745,-413.35,0.00026027,3]
[387242552,1758664334755,-587.39,0.00026027,3]
[387242553,1758664334764,-877.79,0.00026027,3]
[387242554,1758664334773,-400.0,0.00026027,3]
[387242555,1758664334783,-400.0,0.00026027,3]
[387242556,1758664334792,-400.0,0.00026027,3]
[387242557,1758664334802,-400.0,0.00026027,3]
[387242558,1758664334812,-400.0,0.00026027,3]
[387242559,1758664334822,-1910.92,0.00026027,3]
[387242560,1758664334831,-400.0,0.00026027,3]
[387242561,1758664334842,-2031.07,0.00026027,3]
[387242562,1758664334851,-784.22,0.00026027,3]
[387242563,1758664334861,-791.36,0.00026027,3]
[387242564,1758664334871,-4896.65,0.00026027,3]
[387242565,1758664334881,-400.0,0.00026027,3]
[387242566,1758664334891,-559.88,0.00026027,3]
[387242567,1758664334901,-976.72,0.00026027,3]
[387242568,1758664334910,-626.61,0.00026027,3]
[387242569,1758664334920,-1175.49,0.00026027,3]
[387242570,1758664334931,-400.0,0.00026027,3]
[387242571,1758664334940,-1207.96,0.00026027,3]
[387242572,1758664334951,-2758.07,0.00026027,3]
[387242573,1758664334964,-2495.95,0.00026027,3]
[387242574,1758664334974,-400.0,0.00026027,3]
[387242575,1758664334983,-336.07300201,0.00026027,3]
[387242576,1758664334993,-1205.82,0.00026027,3]
[387242577,1758664335002,-1169.14,0.00026027,3]
[387242578,1758664335012,-1595.32,0.00026027,3]
[387242579,1758664335021,-400.0,0.00026027,3]
[387242580,1758664335031,-1049.38,0.00026027,3]
[387242581,1758664335041,-400.0,0.00026027,3]
[387242582,1758664335051,-4079.21,0.00026027,3]
[387242583,1758664335060,-685.44,0.00026027,3]
[387242584,1758664335070,-400.0,0.00026027,3]
[387242585,1758664335079,-2510.3,0.00026027,3]
[387242586,1758664335088,-1890.53,0.00026027,3]
[387242587,1758664335098,-1678.52,0.00026027,3]
[387242588,1758664335108,-16706.02,0.00026027,3]
[387242589,1758664335118,-400.0,0.00026027,3]
[387242590,1758664335127,-400.0,0.00026027,3]
[387242591,1758664335137,-4251.49,0.00026027,3]
[387242592,1758664335147,-2074.52,0.00026027,3]
[387242593,1758664335157,-400.0,0.00026027,3]
[387242594,1758664335167,-400.0,0.00026027,3]
[387242595,1758664335176,-689.28,0.00026027,3]
[387242596,1758664335186,-720.98,0.00026027,3]
[387242597,1758664335195,-400.0,0.00026027,3]
[387242598,1758664335204,-340.0,0.00026027,3]
[387242599,1758664335214,-400.0,0.00026027,3]
[387242600,1758664335225,-3330.98,0.00026027,3]
[387242601,1758664335235,-425.15,0.00026027,3]
[387242602,1758664335245,-487.18,0.00026027,3]
[387242603,1758664335255,-605.39,0.00026027,3]
[387242604,1758664335265,-13418.14,0.00026027,3]
[387242605,1758664335275,-400.0,0.00026027,3]
[387242606,1758664335284,-630.04,0.00026027,3]
[387242607,1758664335293,-425.07,0.00026027,3]
[387242608,1758664335303,-2046.35,0.00026027,3]
[387242609,1758664335313,-507.22,0.00026027,3]
[387242610,1758664335323,-1822.56,0.00026027,3]
[387242611,1758664335332,-1189.77,0.00026027,3]
[387242612,1758664335342,-472.22,0.00026027,3]
[387242613,1758664335352,-400.0,0.00026027,3]
[387242614,1758664335362,-908.29,0.00026027,3]
[387242615,1758664335371,-752.17,0.00026027,3]
[387242616,1758664335382,-2819.02,0.00026027,3]
[387242617,1758664335396,-400.0,0.00026027,3]
[387242618,1758664335406,-400.0,0.00026027,3]
[387242619,1758664335415,-2102.44,0.00026027,3]
[387242620,1758664335425,-7047.04,0.00026027,3]
[387242621,1758664335435,-624.12,0.00026027,3]
[387242622,1758664335444,-1532.57,0.00026027,3]
[387242623,1758664335454,-400.0,0.00026027,3]
[387242624,1758664335464,-1073.44,0.00026027,3]
[387242625,1758664335474,-1624.85668482,0.00026027,2]
[387242626,1758664335484,-1624.85668482,0.00026027,2]
[387242627,1758664335493,-500.0,0.00026068,2]
[387242628,1758664335502,-500.90749646,0.00026068,2]
[387242629,1758664335512,-500.0,0.00026068,2]
[387242630,1758664335522,-1500.0,0.00026068,2]
[387242631,1758664335532,-500.74713935,0.00026068,2]
[387242632,1758664335541,-500.93717596,0.00026068,2]
[387242633,1758664335551,-1500.0,0.00026068,2]
[387242634,1758664335560,-1500.0,0.00026068,2]
[387242635,1758664335570,-1500.0,0.00026068,2]
[387242636,1758664335580,-1000.0,0.00026068,2]
[387242637,1758664335589,-1000.0,0.00026068,2]
[387242638,1758664335598,-500.0,0.00026068,2]
[387242639,1758664335608,-1000.0,0.00026068,2]
[387242640,1758664335617,-1500.0,0.00026068,2]
[387242641,1758664335627,-1500.0,0.00026068,2]
[387242642,1758664335636,-519.69398514,0.00026068,2]
[387242643,1758664335645,-500.0,0.00026068,2]
[387242644,1758664335656,-400.0,0.00026068,2]
[387242645,1758664335666,-511.14005316,0.00026068,2]
[387242646,1758664335675,-1112.81306076,0.00026068,2]
[387242647,1758664335686,-275.1,0.00026077,2]
[387242648,1758664335695,-500.0,0.00026106,2]
[387242649,1758664335818,-500.0,0.00026106,2]
[387242650,1758664335828,-208.80195176,0.00026106,2]
[387242651,1758664335837,-1233.0,0.00026106,2]
[387242652,1758664335847,-500.0,0.00026106,2]
[387242653,1758664335856,-150.0,0.00026106,2]
[387242654,1758664335865,-500.0,0.00026106,2]
[387242655,1758664335874,-150.0,0.00026106,2]
[387242656,1758664335883,-150.0,0.00026106,2]
[387242657,1758664335892,-434.0,0.00026106,2]
[387242658,1758664335902,-323.02865827,0.00026146,2]
[387242659,1758664335912,-400.0,0.00026169,3]
[387242660,1758664335922,-168.0,0.00026202,2]
[387242661,1758664335933,-924.55396831,0.00026216,2]
[387242662,1758664335943,-833.0,0.0002625,2]
[387242663,1758664335953,-947.43,0.00026259,3]
[387242664,1758664335963,-168.30127538,0.000263,10]
[387242665,1758664335972,-403.15,0.00026301,3]
[387242666,1758664335982,-400.0,0.00026301,3]
[387242667,1758664335991,-400.0,0.00026301,3]
[387242668,1758664336000,-422.15,0.00026301,3]
[387242669,1758664336009,-429.33204448,0.00026301,3]
[387242670,1758664336018,-400.0,0.00026301,3]
[387242671,1758664336028,-400.0,0.00026301,3]
[387242672,1758664336037,-400.0,0.00026301,3]
[387242673,1758664336046,-400.0,0.00026301,3]
[387242674,1758664336055,-722.3,0.00026301,3]
[387242675,1758664336064,-400.0,0.00026301,3]
[387242676,1758664336073,-425.13,0.00026301,3]
[387242677,1758664336082,-400.0,0.00026301,3]
[387242678,1758664336092,-463.61,0.00026301,3]
[387242679,1758664336101,-400.0,0.00026301,3]
[387242680,1758664336110,-400.81,0.00026301,3]
[387242681,1758664336119,-606.67,0.00026301,3]
[387242682,1758664336128,-469.06630459,0.00026301,3]
[387242683,1758664336137,-558.51,0.00026301,3]
[387242684,1758664336146,-400.0,0.00026301,3]
[387242685,1758664336155,-517.79,0.00026301,3]
[387242686,1758664336169,-410.1,0.00026301,3]
[387242687,1758664336178,-351.35402407,0.00026301,3]
[387242688,1758664336188,-513.24,0.00026301,3]
[387242689,1758664336197,-864.38,0.00026301,3]
[387242690,1758664336206,-400.0,0.00026301,3]
[387242691,1758664336215,-400.0,0.00026301,3]
[387242692,1758664336224,-400.0,0.00026301,3]
[387242693,1758664336234,-400.0,0.00026301,3]
[387242694,1758664336243,-400.0,0.00026301,3]
[387242695,1758664336253,-400.0,0.00026301,3]
[387242696,1758664336263,-400.0,0.00026301,3]
[387242697,1758664336273,-1162.37,0.00026301,3]
[387242698,1758664336283,-1113.94,0.00026301,3]
[387242699,1758664336292,-1113.94,0.00026301,3]
[387242700,1758664336302,-400.0,0.00026301,3]
[387242701,1758664336311,-499.32,0.00026301,3]
[387242702,1758664336320,-400.0,0.00026301,3]
[387242703,1758664336330,-400.0,0.00026301,3]
[387242704,1758664336339,-400.0,0.00026301,3]
[387242705,1758664336348,-400.0,0.00026301,3]
[387242706,1758664336357,-701.54,0.00026301,3]
[387242707,1758664336366,-761.54,0.00026301,3]
[387242708,1758664336376,-448.15,0.00026301,3]